bitfinex/quotes_SOLUSD_20240705
["timestamp","ask_amount","ask_price","bid_price","bid_amount"]
[1720192373673,18.8042,132.95,132.81,37.6462]
[1720192373970,7.5232,132.93,132.88,7.5254]
[1720192374153,7.5235,132.92,132.88,7.5254]
[1720192374475,20.17,132.94,132.87,18.815]
[1720192374679,18.9772,132.93,132.84,18.8191]
[1720192374973,18.8098,132.91,132.84,18.8191]
[1720192375175,7.5251,132.89,132.84,26.3465]
[1720192375382,0.17,132.88,132.81,18.8231]
[1720192375573,18.8096,132.92,132.83,18.8206]
[1720192375743,7.5245,132.9,132.85,7.5272]
[1720192375948,7.5244,132.91,132.79,100.0]
[1720192376157,7.6948,132.9,132.85,7.5271]
[1720192376370,0.17,132.9,132.84,18.8184]
[1720192376574,7.6945,132.9,132.86,7.5266]
[1720192376972,4.98591939,132.96,132.81,137.646]
[1720192377271,7.5229,132.93,132.88,26.3389]
[1720192377657,7.5229,132.93,132.89,7.5249]
[1720192377863,7.5234,132.92,132.88,26.3391]
[1720192378480,7.5234,132.92,132.88,18.8137]
[1720192379273,7.5239,132.91,132.88,18.8137]
[1720192379580,7.6931,132.93,132.87,18.8151]
[1720192379881,7.524,132.91,132.87,26.341]
[1720192380187,7.5249,132.9,132.86,7.5267]
[1720192380350,7.5252,132.89,132.84,26.3463]
[1720192380553,7.5246,132.9,132.85,7.5272]
[1720192380751,7.5246,132.9,132.86,7.5264]
[1720192380955,18.9798,132.91,132.81,18.823]
[1720192381157,20.0,132.9,132.81,18.823]
[1720192381483,7.5258,132.88,132.84,7.5278]
[1720192381662,7.5258,132.88,132.83,18.8208]
[1720192381864,7.5252,132.89,132.83,18.8208]
[1720192382270,7.5237,132.92,132.87,7.5259]
[1720192382562,7.5237,132.92,132.87,26.3408]
[1720192382882,7.524,132.91,132.87,18.8148]
[1720192383092,7.524,132.91,132.85,18.8182]
[1720192383379,18.8024,132.97,132.87,18.8148]
[1720192383580,7.5225,132.94,132.89,18.8122]
[1720192383756,7.5225,132.94,132.89,26.337]
[1720192383956,0.1,132.99,132.91,7.5238]
[1720192384185,7.5221,132.95,132.91,26.3332]
[1720192384368,7.5219,132.95,132.91,18.8094]
[1720192384772,7.5212,132.96,132.91,26.3331]
[1720192385190,7.5206,132.97,132.92,7.5232]
[1720192385484,7.5204,132.98,132.93,7.5223]
[1720192385689,18.8987,132.99,132.87,37.6292]
[1720192385990,18.8022,132.97,132.87,7.5257]
[1720192386288,7.5217,132.95,132.9,7.5243]
[1720192386457,0.1,132.99,132.9,18.81]
[1720192386654,7.521,132.97,132.92,7.5229]
[1720192386982,7.5206,132.97,132.92,26.3305]
[1720192387185,7.5211,132.96,132.92,18.8074]
[1720192387359,7.5205,132.97,132.93,7.5227]
[1720192387684,0.1,132.99,132.9,137.6202]
[1720192387868,0.1,132.99,132.95,18.8033]
[1720192388197,0.1,132.99,132.98,7.5199]
[1720192388407,7.5143,133.08,133.04,18.7902]
[1720192388701,0.1,133.09,133.01,18.7944]
[1720192388915,7.515,133.07,133.02,7.5176]
[1720192389197,7.5154,133.06,133.02,7.5176]
[1720192389409,0.1,133.09,133.03,7.517]
[1720192389584,0.1,133.09,133.06,7.5152]
[1720192389786,0.1,133.09,133.06,7.5153]
[1720192390089,0.1,133.09,132.96,37.6031]
[1720192390283,0.1,133.09,133.0,7.5184]
[1720192390485,7.6132,133.09,132.97,20.0]
[1720192390685,7.5152,133.07,133.02,7.5172]
[1720192390876,7.5152,133.07,133.02,26.3106]
[1720192391084,20.0,133.08,132.99,18.7973]
[1720192391290,0.1,133.09,132.98,100.17]
[1720192391508,7.5149,133.07,133.02,26.3112]
[1720192391686,7.5143,133.08,133.03,7.5166]
[1720192392117,7.5145,133.08,133.03,7.517]
[1720192392409,0.1,133.09,132.99,18.7979]
[1720192392585,7.5144,133.08,133.03,7.517]
[1720192392922,7.6138,133.09,133.04,7.5164]
[1720192393205,0.1,133.09,133.07,7.5147]
[1720192393520,0.1,133.09,133.07,18.7867]
[1720192394193,0.1,133.09,133.07,26.3014]
[1720192394396,0.1,133.09,133.07,18.7867]
[1720192394603,0.1,133.09,133.02,44.2498]
[1720192394911,0.1,133.09,133.08,7.5142]
[1720192396100,0.1,133.09,133.08,107.5142]
[1720192396289,0.1,133.09,133.08,127.6842]
[1720192396489,0.6716418,133.12,133.11,26.2939]
[1720192396690,8.1836418,133.12,133.08,38.7848]
[1720192397007,0.6716418,133.12,133.08,38.7848]
[1720192397206,0.6716418,133.12,133.05,18.7888]
[1720192397415,7.5126,133.11,133.05,18.7888]
[1720192397793,7.5126,133.11,133.06,7.5152]
[1720192398309,0.6716418,133.12,133.09,7.5135]
[1720192398485,0.6716418,133.12,133.1,7.5127]
[1720192398686,0.6716418,133.12,133.09,26.2975]
[1720192398891,0.6716418,133.12,133.1,7.5129]
[1720192399091,0.6716418,133.12,133.11,7.5125]
[1720192399508,8.1836418,133.12,133.07,7.5144]
[1720192399819,8.1836418,133.12,133.03,26.3082]
[1720192399820,20.0,133.11,133.03,26.3082]
[1720192400017,18.7835,133.1,133.0,18.7964]
[1720192400218,7.5154,133.06,133.0,18.7964]
[1720192400519,18.7859,133.08,133.0,18.7964]
[1720192400706,7.5157,133.06,133.01,7.5179]
[1720192400888,20.17,133.07,132.96,6.1166]
[1720192401090,45.0,133.06,132.9,261.9485]
[1720192401308,7.5212,132.96,132.91,7.5233]
[1720192401611,7.522,132.95,132.9,7.5244]
[1720192401993,7.521,132.96,132.91,7.5238]
[1720192402188,7.5206,132.97,132.92,7.5232]
[1720192403011,7.5199,132.98,132.93,7.5225]
[1720192403700,0.17,132.99,132.92,18.8078]
[1720192403898,20.0,133.02,132.94,18.8048]
[1720192404113,0.17,133.01,132.94,18.8048]
[1720192404315,18.7892,133.06,132.96,18.8013]
[1720192404617,7.5166,133.04,132.96,18.8013]
[1720192404832,7.5158,133.06,133.01,7.5176]
[1720192405007,7.5154,133.06,133.01,7.518]
[1720192405190,30.38786626,133.1,133.0,18.7964]
[1720192405394,7.5152,133.07,133.02,7.5175]
[1720192405616,7.5155,133.06,133.0,26.3146]
[1720192405821,7.5155,133.06,133.01,7.518]
[1720192405987,7.5149,133.07,133.02,7.5176]
[1720192406711,0.6716418,133.12,133.04,7.5159]
[1720192406905,0.6716418,133.12,133.05,7.5158]
[1720192407143,0.6716418,133.12,133.07,7.5144]
[1720192407421,7.5136,133.1,132.99,16.4689]
[1720192407604,7.5136,133.1,133.05,7.5155]
[1720192407996,8.1840418,133.12,133.07,7.5147]
[1720192408330,8.1836418,133.12,133.08,7.5138]
[1720192408506,0.6716418,133.12,133.0,37.7617]
[1720192408701,7.5142,133.08,133.04,18.7903]
[1720192408925,7.5137,133.09,133.04,26.3068]
[1720192409301,0.6716418,133.12,133.06,18.7879]
[1720192409497,0.6716418,133.12,133.08,7.5142]
[1720192409722,0.6716418,133.12,133.06,18.7879]
[1720192410020,0.6716418,133.12,133.09,7.5137]
[1720192410524,0.6716418,133.12,133.1,7.5129]
[1720192410821,0.6716418,133.12,133.11,7.5125]
[1720192411302,0.6716418,133.12,133.11,27.5125]
[1720192412196,0.6716418,133.12,133.11,27.6825]
[1720192412526,0.6716418,133.12,133.11,27.5125]
[1720192413222,0.6716418,133.12,133.11,27.6825]
[1720192414018,0.6716418,133.12,133.11,27.5125]
[1720192414196,0.6716418,133.12,133.11,27.6825]
[1720192414732,0.1,133.19,133.18,7.5086]
[1720192414900,0.1,133.19,133.17,7.5091]
[1720192415220,0.1,133.19,133.18,7.5086]
[1720192415425,0.1,133.19,133.18,20.0]
[1720192415623,0.1,133.19,133.18,7.5086]
[1720192416397,0.0001,133.19,133.18,27.6786]
[1720192416598,0.8576326,133.25,133.24,26.2683]
[1720192417204,0.8576326,133.25,133.18,20.17]
[1720192417403,0.8576326,133.25,133.21,18.7662]
[1720192417625,0.8576326,133.25,133.2,7.5073]
[1720192417626,8.3624326,133.25,133.2,7.5073]
[1720192417837,0.8576326,133.25,133.21,7.5067]
[1720192418037,0.8576326,133.25,133.17,57.5457]
[1720192418202,0.8576326,133.25,133.17,20.0]
[1720192418408,0.8576326,133.25,133.22,18.7646]
[1720192418609,0.8576326,133.25,133.22,26.2704]
[1720192418833,0.8576326,133.25,133.22,18.7646]
[1720192419137,0.8576326,133.25,133.21,26.2729]
[1720192419346,0.8576326,133.25,133.23,7.5057]
[1720192419640,0.8576326,133.25,133.22,7.5061]
[1720192419808,0.8576326,133.25,133.22,7.5063]
[1720192420136,0.8576326,133.25,133.18,18.7711]
[1720192420435,7.5057,133.24,133.19,20.0]
[1720192420608,7.507,133.21,133.16,7.5092]
[1720192420932,7.5071,133.21,133.16,7.5096]
[1720192421228,7.508,133.2,133.15,26.2852]
[1720192421427,7.5069,133.21,133.15,26.2853]
[1720192421730,1.0276326,133.25,133.15,26.2853]
[1720192421731,7.5064,133.22,133.15,18.7751]
[1720192421915,7.5059,133.23,133.17,7.5089]
[1720192422116,1.0276326,133.25,133.15,26.2849]
[1720192422325,7.5086,133.18,133.13,643.5109]
[1720192422519,7.508,133.2,133.14,7.5108]
[1720192422722,7.508,133.2,133.15,7.5102]
[1720192422916,0.17,133.24,133.12,100.0]
[1720192423135,0.8576326,133.25,133.21,7.5068]
[1720192423136,20.8576326,133.25,133.21,7.5068]
[1720192423433,20.8576326,133.25,133.16,100.0]
[1720192423619,0.8576326,133.25,133.2,18.7674]
[1720192424311,0.8576326,133.25,133.17,18.7721]
[1720192424507,0.8576326,133.25,133.21,7.5069]
[1720192424708,8.3623326,133.25,133.2,7.5073]
[1720192425133,7.5052,133.24,133.19,26.2774]
[1720192425720,0.8576326,133.25,133.16,18.7734]
[1720192425925,0.8576326,133.25,133.17,20.0]
[1720192426133,7.5056,133.24,133.19,7.508]
[1720192426426,19.6202326,133.25,133.17,20.0]
[1720192426738,27.5053,133.24,133.19,7.5078]
[1720192427056,20.0,133.24,133.18,7.5084]
[1720192427349,0.8576326,133.25,133.21,7.5064]
[1720192427524,8.3626326,133.25,133.2,26.2751]
[1720192427723,7.5054,133.24,133.2,18.7678]
[1720192427946,0.8576326,133.25,133.21,7.5069]
[1720192428243,0.8576326,133.25,133.24,7.5052]
[1720192428450,0.8576326,133.25,133.22,18.7654]
[1720192428947,0.8576326,133.25,133.24,7.5052]
[1720192429619,0.8576326,133.25,133.24,27.6752]
[1720192430319,0.1,133.29,133.28,26.2605]
[1720192430551,0.1,133.29,133.28,46.2605]
[1720192431449,0.0001,133.29,133.28,146.4305]
[1720192431641,0.0001,133.29,133.28,46.4305]
[1720192431953,0.0001,133.29,133.28,46.2605]
[1720192432429,0.0001,133.29,133.28,46.4305]
[1720192433128,0.0001,133.29,133.28,46.2605]
[1720192433351,0.0001,133.29,133.21,115.5966]
[1720192433352,7.5013,133.31,133.27,7.5034]
[1720192433552,7.5026,133.29,133.19,100.0]
[1720192433848,7.5026,133.29,133.24,7.5048]
[1720192434052,7.5035,133.28,133.2,44.1746]
[1720192434263,7.5036,133.27,133.17,37.5434]
[1720192434552,18.7594,133.27,133.15,22.3644]
[1720192434757,7.5054,133.24,133.15,6.3055]
[1720192434932,15.4186,133.31,133.23,18.7642]
[1720192435254,20.17,133.3,133.16,1.73719811]
[1720192435456,7.5053,133.24,133.16,1.73719811]
[1720192435646,18.7593,133.27,133.19,18.769]
[1720192435845,20.17,133.26,133.16,18.7735]
[1720192436028,7.5054,133.24,133.18,18.7712]
[1720192436229,20.17,133.26,133.18,18.7712]
[1720192436531,18.9307,133.26,133.16,7.5096]
[1720192436734,18.7641,133.24,133.15,26.2855]
[1720192437039,18.7641,133.24,133.11,0.1]
[1720192437040,7.5085,133.19,133.14,7.5108]
[1720192437550,0.17,133.23,133.13,7.5113]
[1720192437551,7.5086,133.18,133.13,7.5113]
[1720192437776,7.5092,133.17,133.12,26.2909]
[1720192438046,7.5076,133.2,133.15,7.5102]
[1720192438245,0.17,133.23,133.14,18.7767]
[1720192438550,7.5062,133.23,133.18,7.5086]
[1720192438862,0.17,133.24,133.16,18.7738]
[1720192439025,7.509,133.18,133.13,26.2884]
[1720192439360,18.7651,133.23,133.13,18.7775]
[1720192439528,7.507,133.21,133.16,7.5097]
[1720192439736,7.5065,133.22,133.17,7.5087]
[1720192439951,7.5059,133.23,133.18,7.5085]
[1720192440140,7.5056,133.24,133.19,7.5078]
[1720192440330,7.5052,133.24,133.19,7.5077]
[1720192440653,7.5064,133.22,133.17,26.2816]
[1720192441068,7.5071,133.21,133.17,26.2816]
[1720192441355,7.5064,133.22,133.17,26.2816]
[1720192441658,7.5064,133.22,133.13,37.555]
[1720192441659,7.5084,133.19,133.14,7.5105]
[1720192441829,7.5076,133.2,133.11,0.1]
[1720192442030,7.5076,133.2,133.15,26.2854]
[1720192442227,7.5076,133.2,133.15,18.7755]
[1720192442456,18.7628,133.25,133.15,18.7755]
[1720192442760,20.0,133.24,133.15,18.7755]
[1720192442955,20.0,133.24,133.12,100.0]
[1720192442956,20.0,133.24,133.11,0.1]
[1720192443252,7.5074,133.21,133.17,7.5091]
[1720192443434,7.5075,133.2,133.16,26.2835]
[1720192443631,7.5071,133.21,133.17,7.5091]
[1720192443836,7.5065,133.22,133.18,18.7713]
[1720192444068,7.5069,133.21,133.17,7.509]
[1720192444269,20.0,133.26,133.13,37.5553]
[1720192444442,7.5057,133.24,133.19,7.5079]
[1720192444637,6.0465,133.28,133.14,100.17]
[1720192444835,5.02267718,133.28,133.17,100.0]
[1720192445037,7.5022,133.3,133.25,7.5041]
[1720192445258,68.01647049,133.35,133.27,7.503]
[1720192445450,86.76437049,133.35,133.25,7.5043]
[1720192445653,86.76437049,133.35,133.26,7.504]
[1720192445654,7.5015,133.31,133.26,7.504]
[1720192445851,7.5015,133.31,133.25,18.7612]
[1720192445852,23.6932,133.35,133.3,7.5014]
[1720192446032,7.4986,133.36,133.31,7.5012]
[1720192446232,7.4986,133.36,133.3,7.5016]
[1720192446436,7.4986,133.36,133.31,7.5012]
[1720192446636,6.3606,133.37,133.29,18.7556]
[1720192446852,13.8588,133.37,133.32,7.5006]
[1720192447163,7.4979,133.37,133.32,7.5007]
[1720192447659,7.4973,133.38,133.33,7.4998]
[1720192448257,7.4973,133.38,133.32,18.751]
[1720192448486,0.4577326,133.39,133.37,7.4978]
[1720192448782,0.4577326,133.39,133.37,7.4975]
[1720192448981,0.4577326,133.39,133.38,7.4973]
[1720192449161,0.4577326,133.39,133.35,7.4986]
[1720192449359,7.9546326,133.39,133.34,7.4995]
[1720192449571,7.4973,133.38,133.33,26.2496]
[1720192449762,0.4577326,133.39,133.3,18.7538]
[1720192450174,0.4577326,133.39,133.29,37.5118]
[1720192450385,0.4577326,133.39,133.34,18.7485]
[1720192450762,0.4577326,133.39,133.36,18.745]
[1720192451184,0.4577326,133.39,133.38,7.4973]
[1720192452389,0.4577326,133.39,133.38,27.6673]
[1720192452865,0.4577326,133.39,133.38,27.4973]
[1720192453067,0.4577326,133.39,133.38,27.6673]
[1720192454692,0.4577326,133.39,133.37,7.4979]
[1720192454893,0.4577326,133.39,133.33,18.7498]
[1720192455264,7.4974,133.38,133.33,26.2498]
[1720192455462,0.4577326,133.39,133.33,18.7498]
[1720192455662,7.4974,133.38,133.33,26.2498]
[1720192456083,0.4577326,133.39,133.36,7.4984]
[1720192456262,0.4577326,133.39,133.37,7.4979]
[1720192457201,0.4577326,133.39,133.38,26.2407]
[1720192457489,0.4577326,133.39,133.37,7.4977]
[1720192457694,0.4577326,133.39,133.35,18.7469]
[1720192457866,7.9546326,133.39,133.35,18.7469]
[1720192458070,0.4577326,133.39,133.27,6.631]
[1720192458270,7.498,133.37,133.32,7.5002]
[1720192458488,0.4577326,133.39,133.28,37.5123]
[1720192458880,0.4577326,133.39,133.32,18.7509]
[1720192459290,0.4577326,133.39,133.35,7.499]
[1720192459487,0.4577326,133.39,133.36,7.4984]
[1720192459683,0.4577326,133.39,133.36,18.7455]
[1720192459989,0.4577326,133.39,133.38,7.4973]
[1720192461272,0.4577326,133.39,133.38,27.6673]
[1720192461778,0.04458798,133.42,133.38,27.6673]
[1720192461779,0.04458798,133.42,133.41,26.2348]
[1720192462085,0.04458798,133.42,133.41,46.4048]
[1720192463002,0.1,133.49,133.48,26.221]
[1720192464597,0.1,133.49,133.48,26.391]
[1720192464795,0.1,133.49,133.48,46.391]
[1720192465113,0.1,133.49,133.48,146.391]
[1720192465498,0.0001,133.49,133.48,146.391]
[1720192465730,0.8576326,133.52,133.51,126.2151]
[1720192466012,0.8576326,133.52,133.51,183.8354]
[1720192466233,0.1,133.59,133.58,7.4861]
[1720192466520,0.1,133.59,133.58,27.6561]
[1720192466696,0.1,133.59,133.58,27.4861]
[1720192466906,0.1,133.59,133.58,7.4861]
[1720192467924,0.1,133.59,133.58,65.0868]
[1720192468497,0.1,133.59,133.58,64.9168]
[1720192468919,0.1,133.59,133.58,65.0868]
[1720192469703,0.1,133.59,133.58,165.0868]
[1720192470621,0.8576326,133.65,133.64,26.1896]
[1720192470820,0.8576326,133.65,133.63,7.4832]
[1720192471010,0.8576326,133.65,133.62,7.4834]
[1720192471197,0.8576326,133.65,133.62,7.4839]
[1720192471392,0.8576326,133.65,133.61,26.1948]
[1720192471597,8.3403326,133.65,133.6,7.4847]
[1720192471817,7.4831,133.64,133.59,7.4855]
[1720192472128,0.8576326,133.65,133.55,18.7191]
[1720192472314,0.17,133.64,133.55,18.7191]
[1720192472621,7.4848,133.61,133.56,7.4871]
[1720192472827,7.4857,133.59,133.55,18.7191]
[1720192473008,18.7132,133.6,133.45,115.0814]
[1720192473207,20.0,133.59,133.49,18.727]
[1720192473398,20.17,133.59,133.49,18.727]
[1720192473635,18.7168,133.57,133.48,1.73303342]
[1720192473934,7.489,133.53,133.48,9.22463342]
[1720192474111,7.6576,133.56,133.51,7.49]
[1720192474423,20.0,133.55,133.49,18.7278]
[1720192474636,20.0,133.55,133.46,18.7312]
[1720192474797,7.4898,133.52,133.46,18.7312]
[1720192475006,7.4905,133.51,133.46,18.7312]
[1720192475231,0.17,133.54,133.48,18.7288]
[1720192475232,7.4884,133.54,133.48,18.7288]
[1720192475397,7.489,133.53,133.48,18.7288]
[1720192475604,16.0938,133.57,133.48,18.7288]
[1720192475605,7.4896,133.52,133.48,18.7288]
[1720192475800,34.811,133.57,133.48,18.7288]
[1720192476018,34.811,133.57,133.43,37.4707]
[1720192476019,7.4901,133.51,133.46,7.4927]
[1720192476225,7.4895,133.52,133.47,7.4921]
[1720192476530,7.4904,133.51,133.46,7.4924]
[1720192476738,18.7206,133.55,133.45,18.7327]
[1720192477031,7.4896,133.52,133.47,7.4922]
[1720192477202,7.4895,133.52,133.47,7.4922]
[1720192477405,7.4891,133.53,133.47,7.4921]
[1720192477620,6.0977,133.56,133.47,18.7298]
[1720192477801,7.4878,133.55,133.5,7.4902]
[1720192478013,18.7113,133.61,133.47,37.4613]
[1720192478214,23.76378181,133.61,133.48,20.17]
[1720192478508,7.486,133.59,133.53,7.4889]
[1720192478716,18.7113,133.61,133.51,18.7245]
[1720192478953,6.0977,133.62,133.48,18.7286]
[1720192479144,7.4895,133.52,133.47,7.4918]
[1720192479426,18.7164,133.58,133.47,18.7301]
[1720192479604,7.4879,133.55,133.5,7.4904]
[1720192479801,18.7164,133.58,133.51,7.49]
[1720192480029,7.4878,133.56,133.51,7.49]
[1720192480210,37.4279,133.6,133.51,7.49]
[1720192480211,18.7119,133.61,133.51,18.7247]
[1720192480632,18.7119,133.61,133.54,7.4882]
[1720192480802,7.4862,133.58,133.53,26.2103]
[1720192481002,18.7119,133.61,133.54,7.488]
[1720192481208,18.7146,133.59,133.5,18.7258]
[1720192481404,18.7146,133.59,133.46,37.4619]
[1720192481405,18.7146,133.59,133.49,7.4906]
[1720192481621,7.4896,133.52,133.47,18.7299]
[1720192481822,7.489,133.53,133.48,7.4917]
[1720192482025,18.7171,133.57,133.49,7.491]
[1720192482202,20.17,133.56,133.47,18.7299]
[1720192482404,7.4884,133.54,133.49,26.2185]
[1720192482624,20.17,133.56,133.5,7.4905]
[1720192482625,7.488,133.55,133.5,7.4905]
[1720192482839,7.4885,133.54,133.49,26.2184]
[1720192483132,7.489,133.53,133.49,26.2184]
[1720192483521,7.4885,133.54,133.49,26.2184]
[1720192483912,20.0,133.56,133.46,37.4623]
[1720192484226,7.4878,133.55,133.51,26.2142]
[1720192484417,7.4893,133.53,133.48,26.2202]
[1720192484822,7.74813136,133.57,133.45,18.7324]
[1720192485038,18.7274,133.5,133.39,18.741]
[1720192485239,18.7274,133.5,133.38,271.0237]
[1720192485240,7.4925,133.47,133.38,15.7237]
[1720192485541,7.4928,133.46,133.42,7.495]
[1720192485834,20.17,133.49,133.41,18.739]
[1720192486211,7.4919,133.48,133.43,7.4945]
[1720192486407,15.1625,133.52,133.46,7.4926]
[1720192486609,7.4914,133.49,133.45,18.7328]
[1720192486839,27.4905,133.51,133.46,7.4924]
[1720192487136,7.4879,133.55,133.49,18.7278]
[1720192487320,26.46553136,133.57,133.5,7.4904]
[1720192487517,26.46553136,133.57,133.46,18.731]
[1720192487518,7.4895,133.52,133.46,18.731]
[1720192487716,7.4897,133.52,133.47,7.4921]
[1720192487940,7.74813136,133.57,133.48,18.729]
[1720192488636,7.4885,133.54,133.5,7.4905]
[1720192488808,7.4897,133.52,133.48,18.729]
[1720192489011,7.74813136,133.57,133.46,7.4928]
[1720192489228,7.74813136,133.57,133.43,7.4944]
[1720192489229,7.4917,133.48,133.43,7.4944]
[1720192489431,18.7241,133.52,133.42,18.7366]
[1720192489636,7.4917,133.48,133.44,18.7347]
[1720192490139,7.4914,133.49,133.44,26.2286]
[1720192490317,7.492,133.48,133.44,18.7347]
[1720192490642,7.4923,133.47,133.43,7.4944]
[1720192490947,7.4917,133.48,133.43,26.23]
[1720192491144,7.4917,133.48,133.44,7.4939]
[1720192491311,7.4917,133.48,133.43,18.7357]
[1720192491312,7.4917,133.48,133.43,26.2301]
[1720192492133,7.4927,133.47,133.43,18.7357]
[1720192492313,7.4918,133.48,133.43,26.2298]
[1720192492512,7.4924,133.47,133.43,26.2298]
[1720192492748,7.4924,133.47,133.42,7.495]
[1720192493056,7.4924,133.47,133.43,7.4944]
[1720192493346,7.4919,133.48,133.43,7.4945]
[1720192493535,26.48458844,133.5,133.42,137.4736]
[1720192493536,7.75768844,133.5,133.42,137.4736]
[1720192493837,5.04402819,133.56,133.48,7.4916]
[1720192494040,26.46462039,133.56,133.49,7.491]
[1720192494243,7.4885,133.54,133.49,7.491]
[1720192494448,7.4885,133.54,133.5,7.4905]
[1720192494626,7.74602039,133.56,133.48,18.7291]
[1720192494824,7.4907,133.5,133.45,26.2256]
[1720192495217,7.4896,133.52,133.47,26.2225]
[1720192495425,7.4896,133.52,133.48,7.4916]
[1720192496043,7.4904,133.51,133.47,18.7306]
[1720192496245,7.4897,133.52,133.47,26.2225]
[1720192496440,7.4897,133.52,133.48,7.4916]
[1720192497060,7.4897,133.52,133.47,26.2226]
[1720192497346,7.489,133.53,133.47,18.7306]
[1720192497550,7.74602039,133.56,133.49,18.7278]
[1720192497721,7.4882,133.55,133.5,7.4905]
[1720192497921,7.488,133.55,133.5,7.4905]
[1720192498123,7.74602039,133.56,133.49,26.2188]
[1720192498341,7.4902,133.51,133.47,7.4922]
[1720192498557,7.74602039,133.56,133.46,18.7308]
[1720192498558,7.4896,133.52,133.46,18.7308]
[1720192498740,7.4896,133.52,133.47,7.4921]
[1720192499044,7.49,133.51,133.47,7.4921]
[1720192499343,0.17,133.5,133.44,7.4939]
[1720192499545,7.4921,133.48,133.43,7.4943]
[1720192499746,0.17,133.5,133.4,292.7811]
[1720192500043,7.4919,133.48,133.44,26.2281]
[1720192500254,0.17,133.5,133.41,18.7382]
[1720192500425,7.4934,133.45,133.41,18.7382]
[1720192500629,7.493,133.46,133.41,26.2337]
[1720192501052,7.4935,133.45,133.41,26.2337]
[1720192501371,7.74602039,133.56,133.5,7.4901]
[1720192501654,7.74602039,133.56,133.49,18.7279]
[1720192501863,18.7183,133.56,133.48,7.4916]
[1720192502157,7.74490579,133.55,133.43,18.7351]
[1720192502331,7.74490579,133.55,133.43,26.2293]
[1720192502667,7.4928,133.46,133.41,7.4951]
[1720192502835,18.7267,133.5,133.42,18.7373]
[1720192503027,18.7299,133.48,133.39,18.7407]
[1720192503231,18.7325,133.46,133.37,7.4979]
[1720192503541,18.7354,133.44,133.32,261.6658]
[1720192503739,20.0,133.43,133.29,418.2118]
[1720192503959,18.7382,133.42,133.33,7.4997]
[1720192504130,20.17,133.41,133.33,7.4997]
[1720192504335,7.4975,133.38,133.33,7.4997]
[1720192504835,7.4967,133.4,133.35,7.4986]
[1720192505041,27.6657,133.41,133.36,26.2433]
[1720192505240,20.17,133.41,133.3,18.7542]
[1720192505442,20.17,133.41,133.24,380.7]
[1720192505443,7.5007,133.32,133.26,7.5041]
[1720192505648,7.5007,133.32,133.25,7.5041]
[1720192505862,6.5684,133.37,133.29,7.5024]
[1720192506032,7.4997,133.34,133.27,18.7579]
[1720192506235,20.17,133.33,133.27,18.7579]
[1720192506429,7.4988,133.36,133.29,18.7552]
[1720192506672,7.4992,133.35,133.3,7.5014]
[1720192506957,7.4992,133.35,133.29,18.7552]
[1720192506958,7.6696,133.34,133.29,18.7552]
[1720192507158,7.5012,133.32,133.27,7.5033]
[1720192507366,7.5015,133.31,133.26,7.5039]
[1720192507553,0.17,133.32,133.22,18.7654]
[1720192507745,7.5013,133.31,133.25,7.5044]
[1720192507952,27.6719,133.3,133.24,26.2669]
[1720192508264,0.17,133.34,133.25,7.5044]
[1720192508265,7.5014,133.31,133.25,7.5044]
[1720192508458,0.17,133.34,133.21,7.6069]
[1720192508459,20.0,133.3,133.21,7.6069]
[1720192508636,7.5046,133.26,133.21,0.1]